[Event "*** Titled Tuesday Blitz"]
[Site "Chess.com"]
[Date "2021.03.02"]
[Round "7"]
[White "alejogarcia1999"]
[Black "Blitzking642"]
[Result "1/2-1/2"]
[WhiteElo "2519"]
[BlackElo "2370"]
[TimeControl "180+1"]
[EndTime "11:17:14 PST"]
[Termination "Game drawn by repetition"]

1. Nf3 {[%clk 0:03:00.9]} 1... c5 {[%clk 0:02:58.8]} 2. g3 {[%clk 0:03:01.7]}
2... g6 {[%clk 0:02:58.5]} 3. Bg2 {[%clk 0:03:02.6]} 3... Bg7 {[%clk 0:02:59.1]}
4. O-O {[%clk 0:03:03.2]} 4... Nc6 {[%clk 0:02:59.5]} 5. c3 {[%clk 0:03:04.1]}
5... d5 {[%clk 0:02:58.6]} 6. d4 {[%clk 0:03:04.1]} 6... cxd4 {[%clk 0:02:58.8]}
7. cxd4 {[%clk 0:03:04.6]} 7... Nf6 {[%clk 0:02:59.2]} 8. Nc3 {[%clk 0:03:05.3]}
8... Ne4 {[%clk 0:02:59.1]} 9. Ne5 {[%clk 0:02:53.6]} 9... Nxc3 {[%clk
0:02:19.7]} 10. Nxc6 {[%clk 0:02:52.9]} 10... Nxe2+ {[%clk 0:02:11.8]} 11. Qxe2
{[%clk 0:02:51.2]} 11... bxc6 {[%clk 0:02:12.7]} 12. Re1 {[%clk 0:02:37.5]}
12... O-O {[%clk 0:02:11.3]} 13. Qxe7 {[%clk 0:02:29.4]} 13... Qxe7 {[%clk
0:02:07.1]} 14. Rxe7 {[%clk 0:02:30.3]} 14... Bxd4 {[%clk 0:02:05.7]} 15. Rc7
{[%clk 0:02:30.3]} 15... Re8 {[%clk 0:01:57.5]} 16. Bh6 {[%clk 0:02:16]} 16...
Re2 {[%clk 0:01:31.7]} 17. Rxc6 {[%clk 0:02:07.7]} 17... Rxf2 {[%clk 0:01:31.6]}
18. Kh1 {[%clk 0:02:07.7]} 18... Be6 {[%clk 0:01:31.9]} 19. Rd1 {[%clk
0:02:02.5]} 19... Bxb2 {[%clk 0:01:23.7]} 20. Bxd5 {[%clk 0:02:02.1]} 20...
Bxd5+ {[%clk 0:00:43.8]} 21. Rxd5 {[%clk 0:02:03]} 21... Re8 {[%clk 0:00:44.1]}
22. Kg1 {[%clk 0:02:02.2]} 22... Rfe2 {[%clk 0:00:24.1]} 23. Rd7 {[%clk
0:01:50.9]} 23... Bg7 {[%clk 0:00:08.9]} 24. Bxg7 {[%clk 0:01:50.9]} 24... Kxg7
{[%clk 0:00:09.8]} 25. Rcc7 {[%clk 0:01:51.2]} 25... Rxa2 {[%clk 0:00:09.5]} 26.
Rxf7+ {[%clk 0:01:51.3]} 26... Kh6 {[%clk 0:00:08.2]} 27. Rxh7+ {[%clk
0:01:49.5]} 27... Kg5 {[%clk 0:00:08.6]} 28. Rc5+ {[%clk 0:01:39.1]} 28... Kf6
{[%clk 0:00:09]} 29. Rc6+ {[%clk 0:01:36.1]} 29... Kg5 {[%clk 0:00:08.4]} 30.
Rc5+ {[%clk 0:01:35.9]} 30... Kf6 {[%clk 0:00:08.2]} 31. Rc6+ {[%clk 0:01:34.7]}
31... Kg5 {[%clk 0:00:08.3]} 32. Rc5+ {[%clk 0:01:25.4]} 1/2-1/2

[Event "*** Titled Tuesday Blitz"]
[Site "Chess.com"]
[Date "2021.03.02"]
[Round "7"]
[White "bilelou"]
[Black "GUST_b"]
[Result "0-1"]
[WhiteElo "2501"]
[BlackElo "2375"]
[TimeControl "180+1"]
[EndTime "11:17:18 PST"]
[Termination "GUST_b won by resignation"]

1. e4 {[%clk 0:02:15.2]} 1... c5 {[%clk 0:02:59.5]} 2. Nf3 {[%clk 0:02:13.6]}
2... Nc6 {[%clk 0:02:59.8]} 3. Bb5 {[%clk 0:02:11.5]} 3... g6 {[%clk 0:02:59.8]}
4. O-O {[%clk 0:02:10.1]} 4... Bg7 {[%clk 0:02:59.9]} 5. c3 {[%clk 0:02:06.9]}
5... Nf6 {[%clk 0:02:59.8]} 6. Re1 {[%clk 0:02:06.1]} 6... O-O {[%clk
0:02:58.5]} 7. d4 {[%clk 0:02:06.3]} 7... d5 {[%clk 0:02:57.5]} 8. e5 {[%clk
0:02:06.7]} 8... Ne4 {[%clk 0:02:57.7]} 9. Bxc6 {[%clk 0:02:07.3]} 9... bxc6
{[%clk 0:02:56]} 10. Nbd2 {[%clk 0:02:08.2]} 10... cxd4 {[%clk 0:02:52.7]} 11.
cxd4 {[%clk 0:02:01.3]} 11... c5 {[%clk 0:02:52]} 12. dxc5 {[%clk 0:01:57.3]}
12... Nxc5 {[%clk 0:02:50]} 13. Nd4 {[%clk 0:01:56.2]} 13... Nd3 {[%clk
0:02:46.9]} 14. Re3 {[%clk 0:01:44.1]} 14... Nxe5 {[%clk 0:02:43.5]} 15. Qe1
{[%clk 0:01:43.4]} 15... Nc4 {[%clk 0:02:24.9]} 16. Nxc4 {[%clk 0:01:40.6]}
16... Bxd4 {[%clk 0:02:19.7]} 17. Ne5 {[%clk 0:01:40.7]} 17... Bxe3 {[%clk
0:02:15]} 18. Bxe3 {[%clk 0:01:41.6]} 18... Bf5 {[%clk 0:02:11.7]} 19. Bd4
{[%clk 0:01:37.8]} 19... Re8 {[%clk 0:02:08]} 20. h4 {[%clk 0:01:31.4]} 20... f6
{[%clk 0:02:07.5]} 21. Nc6 {[%clk 0:01:24.3]} 21... Qd7 {[%clk 0:02:04.7]} 22.
Na5 {[%clk 0:01:16.5]} 22... e5 {[%clk 0:02:02.1]} 23. Bc5 {[%clk 0:01:13.4]}
23... Rac8 {[%clk 0:01:58.1]} 24. b4 {[%clk 0:01:11.1]} 24... d4 {[%clk
0:01:55.8]} 25. Rc1 {[%clk 0:01:03.7]} 25... d3 {[%clk 0:01:48.8]} 26. Qd2
{[%clk 0:01:00.7]} 26... e4 {[%clk 0:01:41.7]} 27. Nc4 {[%clk 0:00:57.6]} 27...
Rc6 {[%clk 0:01:34.5]} 28. h5 {[%clk 0:00:51.7]} 28... Be6 {[%clk 0:01:18.5]}
29. hxg6 {[%clk 0:00:43.2]} 29... hxg6 {[%clk 0:01:19.4]} 30. Na5 {[%clk
0:00:40]} 30... Rc7 {[%clk 0:01:15.9]} 31. a3 {[%clk 0:00:35.9]} 31... Rec8
{[%clk 0:01:14.6]} 32. Qf4 {[%clk 0:00:33.8]} 32... Kg7 {[%clk 0:01:13.2]} 33.
Qxe4 {[%clk 0:00:28.6]} 33... d2 {[%clk 0:01:12.1]} 34. Rd1 {[%clk 0:00:28.5]}
34... Rxc5 {[%clk 0:01:12.5]} 35. bxc5 {[%clk 0:00:28.2]} 35... Rxc5 {[%clk
0:01:13.4]} 36. Qe3 {[%clk 0:00:24.8]} 36... Rxa5 {[%clk 0:01:12.2]} 37. Rxd2
{[%clk 0:00:25.2]} 37... Rd5 {[%clk 0:01:11.8]} 0-1

[Event "*** Titled Tuesday Blitz"]
[Site "Chess.com"]
[Date "2021.03.02"]
[Round "7"]
[White "ukchessbomber"]
[Black "Abund"]
[Result "1-0"]
[WhiteElo "2554"]
[BlackElo "2660"]
[TimeControl "180+1"]
[EndTime "11:17:24 PST"]
[Termination "ukchessbomber won by resignation"]

1. d4 {[%clk 0:03:00.9]} 1... Nf6 {[%clk 0:02:59]} 2. c4 {[%clk 0:03:01.1]} 2...
g6 {[%clk 0:02:58.9]} 3. Nc3 {[%clk 0:03:01.5]} 3... d5 {[%clk 0:02:55.9]} 4.
cxd5 {[%clk 0:03:02.4]} 4... Nxd5 {[%clk 0:02:56]} 5. e4 {[%clk 0:03:03.3]} 5...
Nxc3 {[%clk 0:02:56.5]} 6. bxc3 {[%clk 0:03:04.2]} 6... Bg7 {[%clk 0:02:57.1]}
7. Be3 {[%clk 0:03:04.8]} 7... c5 {[%clk 0:02:57.4]} 8. Qd2 {[%clk 0:03:05.1]}
8... Qa5 {[%clk 0:02:57.3]} 9. Rc1 {[%clk 0:03:04.8]} 9... O-O {[%clk
0:02:54.6]} 10. Nf3 {[%clk 0:03:04.2]} 10... Rd8 {[%clk 0:02:49.2]} 11. d5
{[%clk 0:03:04]} 11... Bg4 {[%clk 0:02:43.7]} 12. c4 {[%clk 0:03:03.2]} 12...
Qc7 {[%clk 0:02:27]} 13. Be2 {[%clk 0:02:52.2]} 13... Nd7 {[%clk 0:02:18.6]} 14.
O-O {[%clk 0:02:47.9]} 14... e6 {[%clk 0:02:00.7]} 15. h3 {[%clk 0:02:24.8]}
15... Bxf3 {[%clk 0:01:52.6]} 16. Bxf3 {[%clk 0:02:25.7]} 16... Ne5 {[%clk
0:01:38.2]} 17. Be2 {[%clk 0:02:25.3]} 17... b5 {[%clk 0:01:13.7]} 18. cxb5
{[%clk 0:02:11.5]} 18... exd5 {[%clk 0:01:13.6]} 19. Rxc5 {[%clk 0:02:06.3]}
19... Qb7 {[%clk 0:01:13.4]} 20. Rxd5 {[%clk 0:02:05.8]} 20... Rxd5 {[%clk
0:01:00.5]} 21. Qxd5 {[%clk 0:02:06.7]} 21... Qb8 {[%clk 0:00:52.5]} 22. f4
{[%clk 0:02:01.9]} 22... Qe8 {[%clk 0:00:44.4]} 23. fxe5 {[%clk 0:02:01.1]}
23... Rd8 {[%clk 0:00:44.3]} 24. Qc6 {[%clk 0:01:58.8]} 24... Qxe5 {[%clk
0:00:43.6]} 25. Bc4 {[%clk 0:01:58.7]} 25... Kh8 {[%clk 0:00:38.5]} 26. Bxf7
{[%clk 0:01:46.5]} 26... Rf8 {[%clk 0:00:26.4]} 27. Bd5 {[%clk 0:01:38.5]} 27...
Rd8 {[%clk 0:00:18.5]} 28. Qc2 {[%clk 0:01:36.6]} 28... Qg3 {[%clk 0:00:18]} 29.
Qf2 {[%clk 0:01:35.3]} 29... Qe5 {[%clk 0:00:16.8]} 30. Bxa7 {[%clk 0:01:35.1]}
30... Qc3 {[%clk 0:00:15.9]} 31. Bb6 {[%clk 0:01:33.7]} 31... Rb8 {[%clk
0:00:15.5]} 32. Be3 {[%clk 0:01:30.3]} 32... Re8 {[%clk 0:00:14.8]} 33. Bg5
{[%clk 0:01:27.2]} 33... h6 {[%clk 0:00:13.5]} 34. Bf6 {[%clk 0:01:27.1]} 34...
Bxf6 {[%clk 0:00:13.4]} 35. Qxf6+ {[%clk 0:01:28]} 35... Qxf6 {[%clk 0:00:14.3]}
36. Rxf6 {[%clk 0:01:28.9]} 36... Kg7 {[%clk 0:00:13]} 37. Rf7+ {[%clk 0:01:29]}
37... Kh8 {[%clk 0:00:12.3]} 38. b6 {[%clk 0:01:28.7]} 38... Rb8 {[%clk
0:00:12.9]} 39. b7 {[%clk 0:01:28.6]} 1-0

[Event "*** Titled Tuesday Blitz"]
[Site "Chess.com"]
[Date "2021.03.02"]
[Round "7"]
[White "Berardino"]
[Black "Lovkov_Roman"]
[Result "0-1"]
[WhiteElo "2567"]
[BlackElo "2717"]
[TimeControl "180+1"]
[EndTime "11:17:27 PST"]
[Termination "Lovkov_Roman won by resignation"]

1. e4 {[%clk 0:03:00.9]} 1... c5 {[%clk 0:02:59.4]} 2. Nf3 {[%clk 0:03:00.8]}
2... g6 {[%clk 0:02:58.4]} 3. d4 {[%clk 0:02:51.5]} 3... cxd4 {[%clk 0:02:59.3]}
4. Nxd4 {[%clk 0:02:52.4]} 4... Bg7 {[%clk 0:02:58.1]} 5. Nc3 {[%clk 0:02:52.9]}
5... Nc6 {[%clk 0:02:58]} 6. Be3 {[%clk 0:02:53.4]} 6... Nf6 {[%clk 0:02:55.8]}
7. Bc4 {[%clk 0:02:53.6]} 7... O-O {[%clk 0:02:54.8]} 8. Bb3 {[%clk 0:02:53.7]}
8... Re8 {[%clk 0:02:50.9]} 9. O-O {[%clk 0:02:30.7]} 9... d6 {[%clk 0:02:47.9]}
10. h3 {[%clk 0:02:31.1]} 10... Bd7 {[%clk 0:02:46.3]} 11. Re1 {[%clk
0:02:26.8]} 11... Na5 {[%clk 0:02:32.5]} 12. Qf3 {[%clk 0:02:20.7]} 12... Nxb3
{[%clk 0:02:31.7]} 13. axb3 {[%clk 0:02:20.1]} 13... Qc7 {[%clk 0:02:04.7]} 14.
Bg5 {[%clk 0:02:06.5]} 14... Bc6 {[%clk 0:02:00.3]} 15. Rad1 {[%clk 0:02:02.3]}
15... Nd7 {[%clk 0:01:59.1]} 16. Nd5 {[%clk 0:01:55.6]} 16... Bxd5 {[%clk
0:01:44]} 17. exd5 {[%clk 0:01:56.5]} 17... Nf6 {[%clk 0:01:21.5]} 18. c4 {[%clk
0:01:51.8]} 18... Qb6 {[%clk 0:01:20.3]} 19. Qf4 {[%clk 0:01:35.9]} 19... a6
{[%clk 0:00:58.9]} 20. Qh4 {[%clk 0:01:34.3]} 20... Rac8 {[%clk 0:00:46.9]} 21.
Re3 {[%clk 0:01:32]} 21... Qc5 {[%clk 0:00:42.5]} 22. Nf3 {[%clk 0:01:07.9]}
22... b5 {[%clk 0:00:38.2]} 23. Rc1 {[%clk 0:00:28.8]} 23... Nxd5 {[%clk
0:00:33.7]} 24. Bxe7 {[%clk 0:00:25]} 24... Nxe3 {[%clk 0:00:32.6]} 0-1

[Event "*** Titled Tuesday Blitz"]
[Site "Chess.com"]
[Date "2021.03.02"]
[Round "7"]
[White "kamilianin235"]
[Black "Trickster_Pony"]
[Result "1-0"]
[WhiteElo "2194"]
[BlackElo "1444"]
[TimeControl "180+1"]
[EndTime "11:17:32 PST"]
[Termination "kamilianin235 won by resignation"]

1. e4 {[%clk 0:03:00.9]} 1... c5 {[%clk 0:02:58.7]} 2. Nf3 {[%clk 0:02:58.5]}
2... g6 {[%clk 0:02:57.8]} 3. d4 {[%clk 0:02:47.7]} 3... cxd4 {[%clk 0:02:58.7]}
4. Qxd4 {[%clk 0:02:47.9]} 4... Nf6 {[%clk 0:02:57.7]} 5. Nc3 {[%clk 0:02:46.1]}
5... Nc6 {[%clk 0:02:25.4]} 6. Qa4 {[%clk 0:02:44]} 6... d6 {[%clk 0:02:17.7]}
7. e5 {[%clk 0:02:43.9]} 7... dxe5 {[%clk 0:02:14.9]} 8. Nxe5 {[%clk 0:02:44.8]}
8... Bd7 {[%clk 0:02:07.5]} 9. Nxd7 {[%clk 0:02:43.6]} 9... Qxd7 {[%clk
0:02:07.7]} 10. Be3 {[%clk 0:02:43.4]} 10... Bg7 {[%clk 0:02:03.7]} 11. Rd1
{[%clk 0:02:43.1]} 11... Qc7 {[%clk 0:02:02.1]} 12. g3 {[%clk 0:02:42]} 12...
O-O {[%clk 0:01:59]} 13. Bg2 {[%clk 0:02:41.1]} 13... a6 {[%clk 0:01:54.1]} 14.
O-O {[%clk 0:02:11.5]} 14... Rac8 {[%clk 0:01:45.2]} 15. Rfe1 {[%clk 0:01:57.5]}
15... b5 {[%clk 0:01:40.8]} 16. Qh4 {[%clk 0:01:56.4]} 16... Rfd8 {[%clk
0:01:31.2]} 17. a4 {[%clk 0:01:53.4]} 17... b4 {[%clk 0:01:26.5]} 18. Na2 {[%clk
0:01:52]} 18... a5 {[%clk 0:00:57.8]} 19. c3 {[%clk 0:01:43.1]} 19... b3 {[%clk
0:00:53.9]} 20. Nc1 {[%clk 0:01:40]} 20... Ne5 {[%clk 0:00:33.2]} 21. Rxd8+
{[%clk 0:01:29.6]} 21... Rxd8 {[%clk 0:00:32.7]} 22. Bf4 {[%clk 0:01:28.5]}
22... Nfd7 {[%clk 0:00:17.6]} 23. Qxe7 {[%clk 0:01:25.7]} 23... Bf6 {[%clk
0:00:15.8]} 24. Bxe5 {[%clk 0:01:23.1]} 24... Nxe5 {[%clk 0:00:14.1]} 25. Qxc7
{[%clk 0:01:22.1]} 25... Nd3 {[%clk 0:00:08.2]} 26. Nxd3 {[%clk 0:01:20.7]}
26... Rxd3 {[%clk 0:00:09.1]} 27. Qc8+ {[%clk 0:01:17.1]} 27... Rd8 {[%clk
0:00:07.8]} 28. Re8+ {[%clk 0:01:18]} 28... Rxe8 {[%clk 0:00:06.1]} 29. Qxe8+
{[%clk 0:01:17.8]} 29... Kg7 {[%clk 0:00:07]} 30. Bd5 {[%clk 0:01:17.3]} 30...
Bxc3 {[%clk 0:00:04.7]} 31. Qxf7+ {[%clk 0:01:17.1]} 31... Kh6 {[%clk
0:00:02.7]} 32. bxc3 {[%clk 0:01:14.3]} 32... b2 {[%clk 0:00:02.5]} 33. Ba2
{[%clk 0:01:12.7]} 1-0

[Event "*** Titled Tuesday Blitz"]
[Site "Chess.com"]
[Date "2021.03.02"]
[Round "7"]
[White "FeketeBarika"]
[Black "Iskusnyh"]
[Result "0-1"]
[WhiteElo "2289"]
[BlackElo "2611"]
[TimeControl "180+1"]
[EndTime "11:17:36 PST"]
[Termination "Iskusnyh won by resignation"]

1. Nf3 {[%clk 0:03:00.9]} 1... d5 {[%clk 0:02:59.4]} 2. g3 {[%clk 0:03:01.8]}
2... Nf6 {[%clk 0:02:57.7]} 3. Bg2 {[%clk 0:02:46.1]} 3... c6 {[%clk 0:02:57.2]}
4. c4 {[%clk 0:02:44.8]} 4... Bf5 {[%clk 0:02:56.8]} 5. O-O {[%clk 0:02:45.7]}
5... e6 {[%clk 0:02:56.5]} 6. cxd5 {[%clk 0:02:40.4]} 6... exd5 {[%clk
0:02:56.1]} 7. d3 {[%clk 0:02:40.6]} 7... Be7 {[%clk 0:02:54.7]} 8. Nc3 {[%clk
0:02:17.6]} 8... O-O {[%clk 0:02:53.9]} 9. Re1 {[%clk 0:02:17.9]} 9... Na6
{[%clk 0:02:46.9]} 10. Nh4 {[%clk 0:02:07.6]} 10... Bg4 {[%clk 0:02:34.6]} 11.
h3 {[%clk 0:02:07.2]} 11... Be6 {[%clk 0:02:33.6]} 12. e4 {[%clk 0:02:06.1]}
12... dxe4 {[%clk 0:02:16.3]} 13. dxe4 {[%clk 0:02:07]} 13... Qxd1 {[%clk
0:02:13.3]} 14. Rxd1 {[%clk 0:02:07.9]} 14... Rfd8 {[%clk 0:02:08.1]} 15. Bg5
{[%clk 0:02:07]} 15... h6 {[%clk 0:02:06.6]} 16. Be3 {[%clk 0:02:05.9]} 16...
Nb4 {[%clk 0:01:51.2]} 17. Rdc1 {[%clk 0:01:52.9]} 17... g5 {[%clk 0:00:58.1]}
18. Nf5 {[%clk 0:01:51.5]} 18... Bxf5 {[%clk 0:00:57.5]} 19. exf5 {[%clk
0:01:52.4]} 19... Nbd5 {[%clk 0:00:52.8]} 20. Bd4 {[%clk 0:01:50.4]} 20... Nb4
{[%clk 0:00:49.3]} 21. Be3 {[%clk 0:01:30.8]} 21... Nfd5 {[%clk 0:00:49.3]} 22.
Nxd5 {[%clk 0:01:25.1]} 22... Nxd5 {[%clk 0:00:48.6]} 23. Bd4 {[%clk 0:01:25.7]}
23... Bf6 {[%clk 0:00:48.4]} 24. Bxd5 {[%clk 0:01:22]} 24... Bxd4 {[%clk
0:00:47.5]} 25. Bc4 {[%clk 0:01:21.5]} 25... Bxb2 {[%clk 0:00:47.3]} 26. Rab1
{[%clk 0:01:20.7]} 26... Bxc1 {[%clk 0:00:47]} 27. Rxc1 {[%clk 0:01:21.6]} 27...
Rd4 {[%clk 0:00:46.1]} 28. Bb3 {[%clk 0:01:21.1]} 28... Kg7 {[%clk 0:00:45.4]}
29. Re1 {[%clk 0:01:20.8]} 29... Kf6 {[%clk 0:00:45.1]} 30. g4 {[%clk
0:01:21.1]} 30... Rad8 {[%clk 0:00:44.4]} 31. Kg2 {[%clk 0:01:20.3]} 31... b5
{[%clk 0:00:44.3]} 32. f3 {[%clk 0:01:16]} 32... a5 {[%clk 0:00:43.5]} 33. Kg3
{[%clk 0:01:15.3]} 33... a4 {[%clk 0:00:42.7]} 34. Bc2 {[%clk 0:01:15.9]} 34...
Rd2 {[%clk 0:00:41.7]} 35. Be4 {[%clk 0:01:16.4]} 35... R8d6 {[%clk 0:00:41.2]}
36. h4 {[%clk 0:01:12]} 36... Rxa2 {[%clk 0:00:38.4]} 37. hxg5+ {[%clk
0:01:11.6]} 37... hxg5 {[%clk 0:00:38]} 38. Rc1 {[%clk 0:01:10]} 38... b4 {[%clk
0:00:36.4]} 39. Bxc6 {[%clk 0:01:08.4]} 39... Rdd2 {[%clk 0:00:35.6]} 40. f4
{[%clk 0:01:03.9]} 40... Ra3+ {[%clk 0:00:35]} 41. Bf3 {[%clk 0:01:03.9]} 41...
Rdd3 {[%clk 0:00:34.8]} 42. fxg5+ {[%clk 0:01:04]} 42... Kxg5 {[%clk 0:00:34.3]}
43. Rf1 {[%clk 0:01:04.9]} 43... Rxf3+ {[%clk 0:00:31.9]} 44. Rxf3 {[%clk
0:01:05.8]} 44... Rxf3+ {[%clk 0:00:31.9]} 0-1

[Event "*** Titled Tuesday Blitz"]
[Site "Chess.com"]
[Date "2021.03.02"]
[Round "7"]
[White "FlySooHigh"]
[Black "CrushingKings"]
[Result "1-0"]
[WhiteElo "2686"]
[BlackElo "2388"]
[TimeControl "180+1"]
[EndTime "11:17:39 PST"]
[Termination "FlySooHigh won by resignation"]

1. e4 {[%clk 0:03:00.9]} 1... c5 {[%clk 0:02:58.4]} 2. Nf3 {[%clk 0:03:00.3]}
2... e6 {[%clk 0:02:57.1]} 3. c3 {[%clk 0:02:59.5]} 3... Nf6 {[%clk 0:02:54]} 4.
e5 {[%clk 0:02:59.7]} 4... Nd5 {[%clk 0:02:53.9]} 5. d4 {[%clk 0:03:00.3]} 5...
cxd4 {[%clk 0:02:53.4]} 6. cxd4 {[%clk 0:03:00.5]} 6... b6 {[%clk 0:02:54.3]} 7.
Nc3 {[%clk 0:02:59.7]} 7... Nxc3 {[%clk 0:02:49.6]} 8. bxc3 {[%clk 0:03:00.6]}
8... Qc7 {[%clk 0:02:47.8]} 9. Bd2 {[%clk 0:03:00.4]} 9... Bb7 {[%clk
0:02:47.5]} 10. Bd3 {[%clk 0:03:00.5]} 10... d6 {[%clk 0:02:43.2]} 11. O-O
{[%clk 0:03:00]} 11... Nd7 {[%clk 0:02:42.3]} 12. Re1 {[%clk 0:02:56.8]} 12...
dxe5 {[%clk 0:02:39.3]} 13. Nxe5 {[%clk 0:02:55.7]} 13... Bd6 {[%clk 0:02:22]}
14. Qh5 {[%clk 0:02:14.4]} 14... Bxe5 {[%clk 0:01:57.2]} 15. dxe5 {[%clk
0:02:12.8]} 15... Nc5 {[%clk 0:01:56.1]} 16. Bb5+ {[%clk 0:02:02.5]} 16... Bc6
{[%clk 0:01:52]} 17. Bxc6+ {[%clk 0:02:02.5]} 17... Qxc6 {[%clk 0:01:52.5]} 18.
Be3 {[%clk 0:02:01]} 18... O-O {[%clk 0:01:50.5]} 19. Qg4 {[%clk 0:01:46.1]}
19... Nd3 {[%clk 0:01:34.9]} 20. Bh6 {[%clk 0:01:40.8]} 20... g6 {[%clk
0:01:30.7]} 21. Re3 {[%clk 0:01:09.5]} 21... Rfd8 {[%clk 0:01:25.6]} 22. Bg5
{[%clk 0:01:04.8]} 22... Qxc3 {[%clk 0:01:10.1]} 23. Rf1 {[%clk 0:00:53]} 23...
Rd4 {[%clk 0:00:58.3]} 24. Qf3 {[%clk 0:00:40]} 24... Nxe5 {[%clk 0:00:43.2]}
25. Qxa8+ {[%clk 0:00:38.7]} 25... Kg7 {[%clk 0:00:39.3]} 26. Rxc3 {[%clk
0:00:38.1]} 26... h6 {[%clk 0:00:34.2]} 27. Bxh6+ {[%clk 0:00:34.2]} 27... Kxh6
{[%clk 0:00:26.9]} 28. Qh8+ {[%clk 0:00:33.7]} 28... Kg5 {[%clk 0:00:26.9]} 29.
Qxe5+ {[%clk 0:00:34.6]} 29... Kh6 {[%clk 0:00:26.6]} 30. Qxd4 {[%clk
0:00:35.1]} 1-0

[Event "*** Titled Tuesday Blitz"]
[Site "Chess.com"]
[Date "2021.03.02"]
[Round "7"]
[White "SanchezKelvin"]
[Black "yuki_chess123"]
[Result "0-1"]
[WhiteElo "2430"]
[BlackElo "2254"]
[TimeControl "180+1"]
[EndTime "11:17:46 PST"]
[Termination "yuki_chess123 won by resignation"]

1. d4 {[%clk 0:03:00.9]} 1... g6 {[%clk 0:02:59.7]} 2. c4 {[%clk 0:03:00.7]}
2... Bg7 {[%clk 0:03:00.2]} 3. Nf3 {[%clk 0:03:00.5]} 3... d6 {[%clk 0:03:00.7]}
4. Nc3 {[%clk 0:03:00.2]} 4... Nf6 {[%clk 0:03:01.2]} 5. e4 {[%clk 0:02:59.9]}
5... O-O {[%clk 0:03:01.8]} 6. Be2 {[%clk 0:02:58.6]} 6... e5 {[%clk 0:03:02.4]}
7. O-O {[%clk 0:02:57.8]} 7... Nc6 {[%clk 0:03:03]} 8. d5 {[%clk 0:02:57.2]}
8... Nd4 {[%clk 0:03:03.5]} 9. Nxd4 {[%clk 0:02:56.8]} 9... exd4 {[%clk
0:03:04.1]} 10. Qxd4 {[%clk 0:02:57.2]} 10... Nd7 {[%clk 0:03:04.6]} 11. Qd2
{[%clk 0:02:52.9]} 11... Nc5 {[%clk 0:03:05.1]} 12. f3 {[%clk 0:02:52.6]} 12...
f5 {[%clk 0:03:05.2]} 13. exf5 {[%clk 0:02:51.2]} 13... Bxf5 {[%clk 0:03:04.5]}
14. Nb5 {[%clk 0:02:42.9]} 14... c6 {[%clk 0:02:52.7]} 15. dxc6 {[%clk
0:02:34.5]} 15... bxc6 {[%clk 0:02:51.6]} 16. Nd4 {[%clk 0:02:34.1]} 16... Qb6
{[%clk 0:02:48.9]} 17. Nxf5 {[%clk 0:02:33.3]} 17... Rxf5 {[%clk 0:02:12]} 18.
Kh1 {[%clk 0:02:32]} 18... Re8 {[%clk 0:02:01.4]} 19. Bd3 {[%clk 0:02:28]} 19...
Rh5 {[%clk 0:01:44.9]} 20. Qc2 {[%clk 0:02:13.8]} 20... Be5 {[%clk 0:00:20.2]}
21. f4 {[%clk 0:02:11.4]} 21... Bg7 {[%clk 0:00:20.7]} 22. Rb1 {[%clk
0:02:02.6]} 22... Ne6 {[%clk 0:00:14.5]} 23. Bd2 {[%clk 0:01:49.7]} 23... Nd4
{[%clk 0:00:12.8]} 24. Qd1 {[%clk 0:01:47.7]} 24... Nf5 {[%clk 0:00:06.6]} 25.
Qf3 {[%clk 0:01:40.9]} 25... Qd4 {[%clk 0:00:05.4]} 26. Bc3 {[%clk 0:01:35.2]}
26... Qe3 {[%clk 0:00:05.3]} 27. Bxg7 {[%clk 0:01:28.2]} 27... Ng3+ {[%clk
0:00:05]} 28. Qxg3 {[%clk 0:01:22.8]} 28... Qxg3 {[%clk 0:00:05.3]} 29. h3
{[%clk 0:01:20.1]} 29... Kxg7 {[%clk 0:00:05.8]} 30. Rf3 {[%clk 0:01:17.9]}
30... Rxh3+ {[%clk 0:00:05.3]} 31. Kg1 {[%clk 0:01:15.1]} 31... Qh2+ {[%clk
0:00:05.7]} 32. Kf2 {[%clk 0:01:13.2]} 32... Rxf3+ {[%clk 0:00:06.1]} 33. Kxf3
{[%clk 0:01:14.1]} 33... Qh5+ {[%clk 0:00:05.8]} 34. Kf2 {[%clk 0:01:13.3]}
34... Qh4+ {[%clk 0:00:06.1]} 35. Kf3 {[%clk 0:01:12.3]} 35... Qf6 {[%clk
0:00:06.3]} 36. b3 {[%clk 0:01:06]} 36... Qd4 {[%clk 0:00:06.3]} 37. Rd1 {[%clk
0:01:06.5]} 37... Re3+ {[%clk 0:00:06.3]} 38. Kg4 {[%clk 0:01:06.4]} 38... Rxd3
{[%clk 0:00:06.5]} 0-1

[Event "*** Titled Tuesday Blitz"]
[Site "Chess.com"]
[Date "2021.03.02"]
[Round "7"]
[White "ErikRonka"]
[Black "GCamachoMartinez"]
[Result "1-0"]
[WhiteElo "2455"]
[BlackElo "2282"]
[TimeControl "180+1"]
[EndTime "11:17:46 PST"]
[Termination "ErikRonka won by resignation"]

1. e4 {[%clk 0:03:00.9]} 1... c5 {[%clk 0:02:59.3]} 2. Nf3 {[%clk 0:03:00.6]}
2... d6 {[%clk 0:02:59.7]} 3. d4 {[%clk 0:03:01]} 3... cxd4 {[%clk 0:03:00.6]}
4. Nxd4 {[%clk 0:03:01.6]} 4... Nf6 {[%clk 0:03:00.7]} 5. Nc3 {[%clk 0:03:02]}
5... g6 {[%clk 0:03:01.2]} 6. Be3 {[%clk 0:03:02.1]} 6... Bg7 {[%clk 0:03:01.7]}
7. f3 {[%clk 0:03:02.7]} 7... O-O {[%clk 0:03:02.2]} 8. Qd2 {[%clk 0:03:03.2]}
8... Nc6 {[%clk 0:03:02.7]} 9. Bc4 {[%clk 0:03:03.7]} 9... Bd7 {[%clk
0:03:02.2]} 10. O-O-O {[%clk 0:03:04.1]} 10... Rc8 {[%clk 0:03:00.5]} 11. Bb3
{[%clk 0:03:04.6]} 11... Nxd4 {[%clk 0:03:00.4]} 12. Bxd4 {[%clk 0:03:03.5]}
12... b5 {[%clk 0:03:00.8]} 13. a3 {[%clk 0:03:02]} 13... a5 {[%clk 0:02:59.9]}
14. Nd5 {[%clk 0:02:49]} 14... Nxd5 {[%clk 0:02:57.7]} 15. Bxg7 {[%clk
0:02:49.9]} 15... Kxg7 {[%clk 0:02:58.3]} 16. exd5 {[%clk 0:02:50.4]} 16... b4
{[%clk 0:02:03.7]} 17. axb4 {[%clk 0:02:49.6]} 17... a4 {[%clk 0:02:04]} 18. Ba2
{[%clk 0:02:38.7]} 18... Bf5 {[%clk 0:02:02.4]} 19. Qd4+ {[%clk 0:02:36.6]}
19... Kg8 {[%clk 0:02:01.6]} 20. Rd2 {[%clk 0:02:08.1]} 20... Rc7 {[%clk
0:01:45.3]} 21. g4 {[%clk 0:01:58.9]} 21... Bd7 {[%clk 0:01:44.3]} 22. h4 {[%clk
0:01:55.1]} 22... Qa8 {[%clk 0:01:43.5]} 23. h5 {[%clk 0:01:50.1]} 23... g5
{[%clk 0:01:27.7]} 24. h6 {[%clk 0:01:39.1]} 24... f6 {[%clk 0:01:22.5]} 25. Re1
{[%clk 0:01:38]} 25... Be8 {[%clk 0:01:08.6]} 26. Rde2 {[%clk 0:01:19.4]} 26...
Bg6 {[%clk 0:01:08.2]} 27. c3 {[%clk 0:01:10.1]} 27... a3 {[%clk 0:01:06.7]} 28.
Rxe7 {[%clk 0:00:51.5]} 28... axb2+ {[%clk 0:01:03.3]} 29. Kxb2 {[%clk
0:00:52.4]} 29... Rxe7 {[%clk 0:00:40.8]} 30. Rxe7 {[%clk 0:00:49.8]} 30... Qa4
{[%clk 0:00:38.1]} 31. Bb3 {[%clk 0:00:44.1]} 31... Qb5 {[%clk 0:00:37.6]} 32.
Qa7 {[%clk 0:00:34.3]} 32... Qf1 {[%clk 0:00:27.9]} 33. Rg7+ {[%clk 0:00:33.3]}
33... Kh8 {[%clk 0:00:25.4]} 34. Rxh7+ {[%clk 0:00:33.2]} 1-0